[Event "Late-Titled-Tuesday-Blitz-September-26-2023"]
[Site "Chess.com"]
[Date "2023.09.26"]
[Round "9"]
[White "Goryachkina"]
[Black "FairChess_on_YouTube"]
[Result "0-1"]
[WhiteElo "2679"]
[BlackElo "3076"]
[TimeControl "180+1"]
[EndTime "15:41:00 PDT"]
[Termination "FairChess_on_YouTube won on time"]

1. e4 {[%clk 0:02:59.8]} 1... e6 {[%clk 0:02:59.6]} 2. d4 {[%clk 0:02:59.5]}
2... d5 {[%clk 0:03:00.2]} 3. Nc3 {[%clk 0:02:59.3]} 3... Nc6 {[%clk 0:03:00.3]}
4. Nf3 {[%clk 0:02:49.2]} 4... Nf6 {[%clk 0:03:00.1]} 5. e5 {[%clk 0:02:48.5]}
5... Ne4 {[%clk 0:03:00.3]} 6. Bd3 {[%clk 0:02:41.2]} 6... Bb4 {[%clk
0:02:59.4]} 7. Bd2 {[%clk 0:02:38.4]} 7... Nxd2 {[%clk 0:02:59.3]} 8. Qxd2
{[%clk 0:02:37.8]} 8... Be7 {[%clk 0:02:57.6]} 9. O-O {[%clk 0:02:36.8]} 9...
Nb4 {[%clk 0:02:55.9]} 10. Bb5+ {[%clk 0:02:27.7]} 10... c6 {[%clk 0:02:51.9]}
11. Ba4 {[%clk 0:02:27.1]} 11... Bd7 {[%clk 0:02:15.8]} 12. Ne2 {[%clk 0:02:23]}
12... c5 {[%clk 0:02:14.9]} 13. Bxd7+ {[%clk 0:02:15.2]} 13... Qxd7 {[%clk
0:02:15.8]} 14. c3 {[%clk 0:02:10.6]} 14... Nc6 {[%clk 0:02:16.1]} 15. Ng3
{[%clk 0:02:09.1]} 15... h5 {[%clk 0:02:09.6]} 16. h4 {[%clk 0:02:06.5]} 16...
O-O-O {[%clk 0:02:08.4]} 17. dxc5 {[%clk 0:01:58.8]} 17... Bxc5 {[%clk
0:02:06.1]} 18. b4 {[%clk 0:01:58.3]} 18... Bb6 {[%clk 0:02:04.1]} 19. a4 {[%clk
0:01:46]} 19... Bc7 {[%clk 0:01:58.4]} 20. Rfe1 {[%clk 0:01:44.4]} 20... f6
{[%clk 0:01:58.5]} 21. exf6 {[%clk 0:01:28.7]} 21... gxf6 {[%clk 0:01:59.4]} 22.
a5 {[%clk 0:01:21.4]} 22... Rdg8 {[%clk 0:01:56.1]} 23. Qe3 {[%clk 0:01:05.5]}
23... Bxg3 {[%clk 0:01:48.2]} 24. fxg3 {[%clk 0:01:04.9]} 24... Rxg3 {[%clk
0:01:48.8]} 25. b5 {[%clk 0:00:38.9]} 25... Ne5 {[%clk 0:01:47.9]} 26. Qc5+
{[%clk 0:00:36.7]} 26... Kb8 {[%clk 0:01:25.8]} 27. Nxe5 {[%clk 0:00:34.8]}
27... fxe5 {[%clk 0:01:25.7]} 28. Rxe5 {[%clk 0:00:34.2]} 28... Rc8 {[%clk
0:01:11.6]} 29. Qf2 {[%clk 0:00:22.8]} 29... Rgxc3 {[%clk 0:01:11.5]} 30. b6
{[%clk 0:00:19.2]} 30... Qd6 {[%clk 0:01:03.1]} 31. Rae1 {[%clk 0:00:17.8]}
31... Rc1 {[%clk 0:01:01.3]} 32. bxa7+ {[%clk 0:00:04]} 32... Ka8 {[%clk
0:01:01.6]} 33. Re2 {[%clk 0:00:04]} 33... d4 {[%clk 0:00:55.3]} 34. Rd2 {[%clk
0:00:03.7]} 34... e5 {[%clk 0:00:52.8]} 35. Kh2 {[%clk 0:00:03.2]} 35... e4+
{[%clk 0:00:51.3]} 36. Kh3 {[%clk 0:00:03.3]} 36... e3 {[%clk 0:00:23.6]} 0-1

[Event "Late-Titled-Tuesday-Blitz-September-26-2023"]
[Site "Chess.com"]
[Date "2023.09.26"]
[Round "9"]
[White "Slovak_fighter2000"]
[Black "vova-79"]
[Result "0-1"]
[WhiteElo "2465"]
[BlackElo "2607"]
[TimeControl "180+1"]
[EndTime "15:41:03 PDT"]
[Termination "vova-79 won on time"]

1. d4 {[%clk 0:03:00.9]} 1... d5 {[%clk 0:02:59.4]} 2. Nf3 {[%clk 0:03:00]} 2...
Nf6 {[%clk 0:02:59]} 3. c4 {[%clk 0:02:59.4]} 3... c6 {[%clk 0:02:58.5]} 4. Nc3
{[%clk 0:02:59.2]} 4... e6 {[%clk 0:02:58.3]} 5. g3 {[%clk 0:02:59.5]} 5... dxc4
{[%clk 0:02:57.7]} 6. Bg2 {[%clk 0:03:00.1]} 6... b5 {[%clk 0:02:58]} 7. O-O
{[%clk 0:03:00.2]} 7... Bb7 {[%clk 0:02:56.7]} 8. e4 {[%clk 0:03:00.3]} 8... a6
{[%clk 0:02:55.6]} 9. e5 {[%clk 0:02:49.8]} 9... Nd5 {[%clk 0:02:54.8]} 10. Ng5
{[%clk 0:02:50.4]} 10... Nxc3 {[%clk 0:02:20.1]} 11. bxc3 {[%clk 0:02:49.5]}
11... h6 {[%clk 0:02:17.4]} 12. Qh5 {[%clk 0:02:31.7]} 12... g6 {[%clk
0:02:14.9]} 13. Qh3 {[%clk 0:02:30.5]} 13... Nd7 {[%clk 0:02:06.8]} 14. Nxe6
{[%clk 0:02:19.1]} 14... fxe6 {[%clk 0:02:04.9]} 15. Qxe6+ {[%clk 0:02:19.9]}
15... Qe7 {[%clk 0:02:04.6]} 16. Qxg6+ {[%clk 0:02:19.2]} 16... Qf7 {[%clk
0:02:04.5]} 17. Qe4 {[%clk 0:01:56]} 17... Qe7 {[%clk 0:01:43.5]} 18. f4 {[%clk
0:01:41]} 18... Nb6 {[%clk 0:01:33.5]} 19. f5 {[%clk 0:01:33.7]} 19... O-O-O
{[%clk 0:01:28.9]} 20. Bh3 {[%clk 0:01:26.6]} 20... Kb8 {[%clk 0:01:20.7]} 21.
f6 {[%clk 0:01:22.5]} 21... Qc7 {[%clk 0:01:09.7]} 22. e6 {[%clk 0:01:15.1]}
22... c5 {[%clk 0:01:04.4]} 23. Qf5 {[%clk 0:01:02.3]} 23... Qc6 {[%clk
0:00:53.9]} 24. Bf4+ {[%clk 0:00:54.6]} 24... Bd6 {[%clk 0:00:40]} 25. d5 {[%clk
0:00:46]} 25... Nxd5 {[%clk 0:00:37.2]} 26. Bg2 {[%clk 0:00:43.3]} 26... Bxf4
{[%clk 0:00:27.2]} 27. Rxf4 {[%clk 0:00:32.3]} 27... Qd6 {[%clk 0:00:14.8]} 28.
e7 {[%clk 0:00:26.4]} 28... Nxe7 {[%clk 0:00:14.3]} 29. fxe7 {[%clk 0:00:22.8]}
29... Qxe7 {[%clk 0:00:14.7]} 30. Bxb7 {[%clk 0:00:13.5]} 30... Kxb7 {[%clk
0:00:15.1]} 31. Qf7 {[%clk 0:00:12.6]} 31... Rd7 {[%clk 0:00:14.7]} 32. Qxe7
{[%clk 0:00:08.5]} 32... Rxe7 {[%clk 0:00:15.6]} 33. Rb1 {[%clk 0:00:05.4]}
33... Rhe8 {[%clk 0:00:13.7]} 34. Kg2 {[%clk 0:00:03.7]} 34... Kc6 {[%clk
0:00:13.6]} 35. Rf2 {[%clk 0:00:03.9]} 35... Re2 {[%clk 0:00:13.5]} 36. Rf1
{[%clk 0:00:02.8]} 36... b4 {[%clk 0:00:13.4]} 37. Rc1 {[%clk 0:00:01.6]} 37...
Kb5 {[%clk 0:00:13]} 0-1

[Event "Late-Titled-Tuesday-Blitz-September-26-2023"]
[Site "Chess.com"]
[Date "2023.09.26"]
[Round "9"]
[White "Cmorales2001"]
[Black "GMJustin"]
[Result "1-0"]
[WhiteElo "2423"]
[BlackElo "2213"]
[TimeControl "180+1"]
[EndTime "15:41:03 PDT"]
[Termination "Cmorales2001 won on time"]

1. e4 {[%clk 0:03:00.9]} 1... e5 {[%clk 0:02:41.3]} 2. Nf3 {[%clk 0:02:59.3]}
2... Nc6 {[%clk 0:02:41.2]} 3. Bb5 {[%clk 0:02:57.2]} 3... a6 {[%clk 0:02:39.9]}
4. Ba4 {[%clk 0:02:56.7]} 4... Nf6 {[%clk 0:02:38.3]} 5. O-O {[%clk 0:02:55.6]}
5... Be7 {[%clk 0:02:37.1]} 6. c3 {[%clk 0:02:53]} 6... O-O {[%clk 0:02:29.2]}
7. Re1 {[%clk 0:02:52.6]} 7... d6 {[%clk 0:02:19.9]} 8. h3 {[%clk 0:02:51.5]}
8... b5 {[%clk 0:01:50.4]} 9. Bb3 {[%clk 0:02:47.6]} 9... Nb8 {[%clk 0:01:48.6]}
10. d3 {[%clk 0:02:46.2]} 10... Nbd7 {[%clk 0:01:45.1]} 11. Nbd2 {[%clk
0:02:46.8]} 11... Bb7 {[%clk 0:01:01.3]} 12. Nf1 {[%clk 0:02:43]} 12... Nc5
{[%clk 0:00:58.7]} 13. Bc2 {[%clk 0:02:41.3]} 13... Re8 {[%clk 0:00:32.3]} 14.
Ng3 {[%clk 0:02:39.6]} 14... Bf8 {[%clk 0:00:29.2]} 15. Bg5 {[%clk 0:02:37.2]}
15... Ne6 {[%clk 0:00:24]} 16. Be3 {[%clk 0:02:34.6]} 16... g6 {[%clk 0:00:21]}
17. Qd2 {[%clk 0:02:30.1]} 17... Bg7 {[%clk 0:00:17.1]} 18. Bh6 {[%clk
0:02:28.7]} 18... Bxh6 {[%clk 0:00:10.4]} 19. Qxh6 {[%clk 0:02:23.1]} 19... Nf4
{[%clk 0:00:09]} 20. Ne2 {[%clk 0:02:20.4]} 20... Nxe2+ {[%clk 0:00:02.8]} 21.
Rxe2 {[%clk 0:02:20]} 21... Qe7 {[%clk 0:00:03.5]} 22. Rae1 {[%clk 0:02:12.8]}
22... Qf8 {[%clk 0:00:03.4]} 23. Qd2 {[%clk 0:02:07.8]} 23... Nh5 {[%clk
0:00:03.4]} 24. d4 {[%clk 0:02:02.3]} 24... Nf4 {[%clk 0:00:02.7]} 25. Re3
{[%clk 0:02:01.8]} 25... Rad8 {[%clk 0:00:02.9]} 26. g3 {[%clk 0:01:52.9]} 26...
Nh5 {[%clk 0:00:02]} 27. R3e2 {[%clk 0:01:48.1]} 27... Kg7 {[%clk 0:00:01.8]}
28. Nh2 {[%clk 0:01:45.2]} 28... Nf6 {[%clk 0:00:01.5]} 29. f4 {[%clk
0:01:36.2]} 29... exd4 {[%clk 0:00:01.6]} 30. cxd4 {[%clk 0:01:35.4]} 30... d5
{[%clk 0:00:01.7]} 31. e5 {[%clk 0:01:32.4]} 31... Ne4 {[%clk 0:00:02]} 32. Qe3
{[%clk 0:01:26.9]} 32... c5 {[%clk 0:00:02.2]} 33. dxc5 {[%clk 0:01:25]} 33...
Qxc5 {[%clk 0:00:01.8]} 34. Qxc5 {[%clk 0:01:16.5]} 34... Nxc5 {[%clk
0:00:01.7]} 35. Rd2 {[%clk 0:01:05.3]} 35... Ne4 {[%clk 0:00:01.7]} 36. Rd3
{[%clk 0:01:03]} 36... f6 {[%clk 0:00:01.7]} 37. exf6+ {[%clk 0:00:57.3]} 37...
Nxf6 {[%clk 0:00:01.7]} 38. Red1 {[%clk 0:00:55]} 38... Re4 {[%clk 0:00:01.3]}
39. Bb3 {[%clk 0:00:52.1]} 39... Re2 {[%clk 0:00:01.3]} 40. R3d2 {[%clk
0:00:46.8]} 40... Rxd2 {[%clk 0:00:01.7]} 41. Rxd2 {[%clk 0:00:46.9]} 41... Ne4
{[%clk 0:00:02.3]} 42. Rd3 {[%clk 0:00:47]} 42... Nc5 {[%clk 0:00:01.6]} 43. Rd4
{[%clk 0:00:46.6]} 43... Nxb3 {[%clk 0:00:01.3]} 44. axb3 {[%clk 0:00:47.5]}
44... Rc8 {[%clk 0:00:01.4]} 45. Rd2 {[%clk 0:00:44.7]} 45... Rc1+ {[%clk
0:00:01.1]} 46. Kf2 {[%clk 0:00:44.2]} 46... b4 {[%clk 0:00:01.2]} 47. Nf3
{[%clk 0:00:43.9]} 47... a5 {[%clk 0:00:01.4]} 48. Ne5 {[%clk 0:00:42.4]} 48...
Kf6 {[%clk 0:00:01.5]} 49. Ng4+ {[%clk 0:00:36.7]} 49... Ke7 {[%clk 0:00:01.3]}
50. Ne3 {[%clk 0:00:36]} 1-0

[Event "Late-Titled-Tuesday-Blitz-September-26-2023"]
[Site "Chess.com"]
[Date "2023.09.26"]
[Round "9"]
[White "JoakimVonAnd"]
[Black "MITerryble"]
[Result "1-0"]
[WhiteElo "2748"]
[BlackElo "2938"]
[TimeControl "180+1"]
[EndTime "15:41:05 PDT"]
[Termination "JoakimVonAnd won on time"]

1. Nf3 {[%clk 0:03:00.9]} 1... d5 {[%clk 0:03:00.1]} 2. g3 {[%clk 0:02:54]} 2...
Nf6 {[%clk 0:03:00.5]} 3. Bg2 {[%clk 0:02:54.2]} 3... c6 {[%clk 0:03:01.1]} 4.
O-O {[%clk 0:02:54]} 4... Bg4 {[%clk 0:03:01.7]} 5. c4 {[%clk 0:02:53]} 5...
dxc4 {[%clk 0:03:02.1]} 6. a4 {[%clk 0:02:49]} 6... Nbd7 {[%clk 0:02:59.5]} 7.
Na3 {[%clk 0:02:48.7]} 7... Bxf3 {[%clk 0:02:59.5]} 8. Bxf3 {[%clk 0:02:48]}
8... Ne5 {[%clk 0:03:00.1]} 9. Bg2 {[%clk 0:02:48.5]} 9... Qd4 {[%clk
0:02:57.7]} 10. Rb1 {[%clk 0:02:40.9]} 10... Rd8 {[%clk 0:02:51.4]} 11. Qc2
{[%clk 0:02:37.9]} 11... Nd5 {[%clk 0:02:37.6]} 12. b4 {[%clk 0:02:17.6]} 12...
c3 {[%clk 0:02:24.8]} 13. dxc3 {[%clk 0:01:48.5]} 13... Qxc3 {[%clk 0:02:22.6]}
14. Qe4 {[%clk 0:01:34.1]} 14... Nf6 {[%clk 0:02:17.3]} 15. Qf4 {[%clk
0:01:29.3]} 15... g5 {[%clk 0:01:23.5]} 16. Qxg5 {[%clk 0:01:23.2]} 16... Ng6
{[%clk 0:01:01.7]} 17. Qe3 {[%clk 0:01:18.4]} 17... Qxe3 {[%clk 0:00:54.7]} 18.
Bxe3 {[%clk 0:01:19.3]} 18... Ng4 {[%clk 0:00:55.4]} 19. Bxa7 {[%clk 0:01:18.4]}
19... Ra8 {[%clk 0:00:55.6]} 20. Bb6 {[%clk 0:01:15.7]} 20... Rxa4 {[%clk
0:00:55.5]} 21. Rfd1 {[%clk 0:01:14.9]} 21... f5 {[%clk 0:00:49.9]} 22. Nc4
{[%clk 0:01:11.2]} 22... N6e5 {[%clk 0:00:41.3]} 23. Nxe5 {[%clk 0:01:10.6]}
23... Nxe5 {[%clk 0:00:42.2]} 24. Bd4 {[%clk 0:01:11]} 24... Ng6 {[%clk
0:00:34.8]} 25. Bxh8 {[%clk 0:01:10.1]} 25... Nxh8 {[%clk 0:00:35.7]} 26. b5
{[%clk 0:01:10.7]} 26... cxb5 {[%clk 0:00:29.4]} 27. Rxb5 {[%clk 0:01:11.6]}
27... f4 {[%clk 0:00:23.6]} 28. Rxb7 {[%clk 0:01:11.4]} 28... Ra5 {[%clk
0:00:15.8]} 29. Bd5 {[%clk 0:01:09.1]} 29... Bg7 {[%clk 0:00:13.1]} 30. Be6
{[%clk 0:01:07.4]} 30... Ra8 {[%clk 0:00:11.3]} 31. Rdb1 {[%clk 0:01:03.6]}
31... Be5 {[%clk 0:00:11.6]} 32. R7b5 {[%clk 0:00:50.3]} 32... Ng6 {[%clk
0:00:10.6]} 33. Bf5 {[%clk 0:00:46.7]} 33... Bd6 {[%clk 0:00:10.9]} 34. Kg2
{[%clk 0:00:39.1]} 34... Kf7 {[%clk 0:00:10.2]} 35. Rb7 {[%clk 0:00:37.3]} 35...
Ra2 {[%clk 0:00:06.2]} 36. Bd3 {[%clk 0:00:35.6]} 36... Kf6 {[%clk 0:00:05.3]}
37. R7b6 {[%clk 0:00:32.4]} 37... fxg3 {[%clk 0:00:03.6]} 38. hxg3 {[%clk
0:00:31.9]} 38... Ne5 {[%clk 0:00:04.5]} 39. Ba6 {[%clk 0:00:22.7]} 39... h6
{[%clk 0:00:02.4]} 40. Rh1 {[%clk 0:00:20.3]} 40... Nd7 {[%clk 0:00:02.5]} 41.
Rc6 {[%clk 0:00:17.4]} 1-0

[Event "Late-Titled-Tuesday-Blitz-September-26-2023"]
[Site "Chess.com"]
[Date "2023.09.26"]
[Round "9"]
[White "CURRUTACO59"]
[Black "dadice10"]
[Result "1-0"]
[WhiteElo "2247"]
[BlackElo "2230"]
[TimeControl "180+1"]
[EndTime "15:41:07 PDT"]
[Termination "CURRUTACO59 won on time"]

1. Nf3 {[%clk 0:03:00.9]} 1... Nf6 {[%clk 0:02:57.6]} 2. d4 {[%clk 0:03:00.3]}
2... g6 {[%clk 0:02:57.2]} 3. c4 {[%clk 0:02:59.8]} 3... Bg7 {[%clk 0:02:55.7]}
4. g3 {[%clk 0:03:00.4]} 4... O-O {[%clk 0:02:53.2]} 5. Bg2 {[%clk 0:03:00.9]}
5... c6 {[%clk 0:02:53.6]} 6. O-O {[%clk 0:03:00.2]} 6... d5 {[%clk 0:02:53.9]}
7. cxd5 {[%clk 0:03:00.4]} 7... cxd5 {[%clk 0:02:53.3]} 8. Ne5 {[%clk
0:03:00.6]} 8... Nc6 {[%clk 0:02:51.2]} 9. Nxc6 {[%clk 0:03:00.5]} 9... bxc6
{[%clk 0:02:50.6]} 10. Nc3 {[%clk 0:03:01.1]} 10... Nd7 {[%clk 0:02:47.8]} 11.
Bf4 {[%clk 0:02:53.5]} 11... e5 {[%clk 0:02:44.9]} 12. dxe5 {[%clk 0:02:50.9]}
12... Nxe5 {[%clk 0:02:44.6]} 13. Rc1 {[%clk 0:02:40.2]} 13... Nc4 {[%clk
0:02:37.9]} 14. Qc2 {[%clk 0:02:30.8]} 14... Qa5 {[%clk 0:02:31.2]} 15. b3
{[%clk 0:02:03.6]} 15... Na3 {[%clk 0:02:27.7]} 16. Qd2 {[%clk 0:02:03.4]} 16...
Re8 {[%clk 0:02:13.1]} 17. e3 {[%clk 0:01:51.8]} 17... Bd7 {[%clk 0:02:10.5]}
18. Rfd1 {[%clk 0:01:45.9]} 18... a6 {[%clk 0:02:03]} 19. Na4 {[%clk 0:01:45.2]}
19... Qxd2 {[%clk 0:02:01]} 20. Rxd2 {[%clk 0:01:46.1]} 20... h6 {[%clk
0:01:49.3]} 21. Bd6 {[%clk 0:01:32.3]} 21... Nb5 {[%clk 0:01:47.5]} 22. Bc5
{[%clk 0:01:30.6]} 22... Rad8 {[%clk 0:01:18.8]} 23. Bb6 {[%clk 0:01:23.3]}
23... Rb8 {[%clk 0:01:15.5]} 24. Ba5 {[%clk 0:01:22.6]} 24... Be5 {[%clk
0:00:41.9]} 25. Nc5 {[%clk 0:00:59]} 25... Bc8 {[%clk 0:00:39.6]} 26. Nd3 {[%clk
0:00:56.1]} 26... Bd6 {[%clk 0:00:14.2]} 27. Rxc6 {[%clk 0:00:48.5]} 27... Ba3
{[%clk 0:00:12.6]} 28. Rcc2 {[%clk 0:00:35.9]} 28... Bf5 {[%clk 0:00:11.3]} 29.
Rc6 {[%clk 0:00:26.9]} 29... d4 {[%clk 0:00:10.4]} 30. e4 {[%clk 0:00:20]} 30...
Bxe4 {[%clk 0:00:07.9]} 31. Bxe4 {[%clk 0:00:19.8]} 31... Rxe4 {[%clk
0:00:07.4]} 32. Rxa6 {[%clk 0:00:14.1]} 32... Rbe8 {[%clk 0:00:05.7]} 33. Kg2
{[%clk 0:00:12.2]} 33... Re2 {[%clk 0:00:02.6]} 34. Rxe2 {[%clk 0:00:09]} 34...
Rxe2 {[%clk 0:00:03.5]} 35. Nf4 {[%clk 0:00:06.1]} 1-0

[Event "Late-Titled-Tuesday-Blitz-September-26-2023"]
[Site "Chess.com"]
[Date "2023.09.26"]
[Round "9"]
[White "vugarrasulov"]
[Black "sofaceindisguise"]
[Result "1-0"]
[WhiteElo "2952"]
[BlackElo "2722"]
[TimeControl "180+1"]
[EndTime "15:41:09 PDT"]
[Termination "vugarrasulov won by resignation"]

1. e4 {[%clk 0:03:00.9]} 1... c5 {[%clk 0:02:58.9]} 2. Nf3 {[%clk 0:03:01.2]}
2... e6 {[%clk 0:02:59.4]} 3. d4 {[%clk 0:02:59.1]} 3... cxd4 {[%clk 0:03:00.3]}
4. Nxd4 {[%clk 0:03:00]} 4... a6 {[%clk 0:03:00.9]} 5. g3 {[%clk 0:03:00.2]}
5... d6 {[%clk 0:03:00]} 6. Bg2 {[%clk 0:03:00.4]} 6... Nf6 {[%clk 0:03:00.9]}
7. O-O {[%clk 0:03:00.5]} 7... Be7 {[%clk 0:03:01.4]} 8. c4 {[%clk 0:03:00.7]}
8... O-O {[%clk 0:03:01.9]} 9. Nc3 {[%clk 0:03:01.3]} 9... Qc7 {[%clk
0:03:02.5]} 10. b3 {[%clk 0:02:59.5]} 10... Bd7 {[%clk 0:03:02.4]} 11. Be3
{[%clk 0:02:58.6]} 11... Nc6 {[%clk 0:03:02.9]} 12. Rc1 {[%clk 0:02:59.2]} 12...
Nxd4 {[%clk 0:03:03.2]} 13. Bxd4 {[%clk 0:02:59.1]} 13... Rac8 {[%clk
0:03:03.7]} 14. h3 {[%clk 0:02:53.9]} 14... Rfd8 {[%clk 0:02:58.1]} 15. g4
{[%clk 0:02:53]} 15... Be8 {[%clk 0:02:53.5]} 16. Qe2 {[%clk 0:02:50.9]} 16...
Qb8 {[%clk 0:02:45.9]} 17. Bb6 {[%clk 0:02:47.7]} 17... Rd7 {[%clk 0:02:40.6]}
18. f4 {[%clk 0:02:47.8]} 18... Rc6 {[%clk 0:02:23.1]} 19. Bd4 {[%clk
0:02:46.3]} 19... e5 {[%clk 0:02:23.1]} 20. Be3 {[%clk 0:02:42.3]} 20... Rd8
{[%clk 0:02:12.6]} 21. f5 {[%clk 0:02:36.3]} 21... h6 {[%clk 0:02:08.8]} 22. h4
{[%clk 0:02:36.4]} 22... Nh7 {[%clk 0:02:08.6]} 23. Qf2 {[%clk 0:02:36.2]} 23...
b5 {[%clk 0:02:02]} 24. Nd5 {[%clk 0:02:36.1]} 24... Qb7 {[%clk 0:01:59.8]} 25.
Qg3 {[%clk 0:02:31.9]} 25... Rdc8 {[%clk 0:01:59.2]} 26. g5 {[%clk 0:02:31]}
26... hxg5 {[%clk 0:01:58.4]} 27. hxg5 {[%clk 0:02:31.9]} 27... bxc4 {[%clk
0:01:48.8]} 28. bxc4 {[%clk 0:02:32.8]} 28... Rxc4 {[%clk 0:01:49.4]} 29. Rb1
{[%clk 0:02:33.2]} 29... Bb5 {[%clk 0:01:43.5]} 30. f6 {[%clk 0:02:25.5]} 30...
Bf8 {[%clk 0:01:42.5]} 31. g6 {[%clk 0:02:25]} 31... fxg6 {[%clk 0:01:41.2]} 32.
Qxg6 {[%clk 0:02:22.9]} 32... Qf7 {[%clk 0:01:36.7]} 33. Qg4 {[%clk 0:02:09.3]}
33... Rc2 {[%clk 0:01:35.1]} 34. Rf3 {[%clk 0:01:47.6]} 34... Be2 {[%clk
0:01:29.6]} 35. Rbf1 {[%clk 0:01:42.3]} 35... Bxf3 {[%clk 0:01:29.3]} 36. Rxf3
{[%clk 0:01:42.3]} 36... Kh8 {[%clk 0:01:25.8]} 37. Rh3 {[%clk 0:01:37.3]} 37...
gxf6 {[%clk 0:01:15.7]} 38. Rg3 {[%clk 0:01:27.9]} 38... Bg7 {[%clk 0:01:05]}
39. Qf5 {[%clk 0:01:17.3]} 39... Rg8 {[%clk 0:01:04.6]} 40. Rh3 {[%clk
0:01:12.9]} 40... Rxg2+ {[%clk 0:00:58.3]} 41. Kxg2 {[%clk 0:01:11.8]} 41...
Bh6+ {[%clk 0:00:58.8]} 42. Kf3 {[%clk 0:01:03.6]} 42... Bxe3 {[%clk 0:00:59.1]}
43. Nxf6 {[%clk 0:01:03.4]} 43... Rg7 {[%clk 0:00:26.9]} 44. Qc8+ {[%clk
0:01:02.2]} 44... Rg8 {[%clk 0:00:25.2]} 45. Qf5 {[%clk 0:00:56.4]} 45... Rg7
{[%clk 0:00:25.2]} 46. Kxe3 {[%clk 0:00:55.4]} 46... Qa7+ {[%clk 0:00:16.6]} 47.
Kf3 {[%clk 0:00:54.4]} 47... Qf7 {[%clk 0:00:16.7]} 48. Rh6 {[%clk 0:00:49.8]}
48... Qc7 {[%clk 0:00:13.1]} 49. Nd5 {[%clk 0:00:39.9]} 49... Rf7 {[%clk
0:00:11]} 50. Rxh7+ {[%clk 0:00:38.9]} 50... Rxh7 {[%clk 0:00:10.5]} 51. Nxc7
{[%clk 0:00:38.9]} 1-0

[Event "Late-Titled-Tuesday-Blitz-September-26-2023"]
[Site "Chess.com"]
[Date "2023.09.26"]
[Round "9"]
[White "Mesa_1"]
[Black "hansen"]
[Result "0-1"]
[WhiteElo "2629"]
[BlackElo "2904"]
[TimeControl "180+1"]
[EndTime "15:41:09 PDT"]
[Termination "hansen won by checkmate"]

1. e4 {[%clk 0:02:56]} 1... c5 {[%clk 0:03:00]} 2. Nf3 {[%clk 0:02:56.5]} 2...
e6 {[%clk 0:03:00.5]} 3. d4 {[%clk 0:02:57.2]} 3... cxd4 {[%clk 0:03:01.4]} 4.
Nxd4 {[%clk 0:02:57.7]} 4... a6 {[%clk 0:03:02.2]} 5. c4 {[%clk 0:02:57.5]} 5...
Qc7 {[%clk 0:03:02.5]} 6. Nc3 {[%clk 0:02:57.8]} 6... d6 {[%clk 0:03:03.2]} 7.
a3 {[%clk 0:02:58]} 7... Nf6 {[%clk 0:03:04.1]} 8. Be2 {[%clk 0:02:57.1]} 8...
Be7 {[%clk 0:03:04.7]} 9. Be3 {[%clk 0:02:56.3]} 9... b6 {[%clk 0:03:05.3]} 10.
Rc1 {[%clk 0:02:55.3]} 10... Bb7 {[%clk 0:03:05.9]} 11. f3 {[%clk 0:02:55.9]}
11... Nbd7 {[%clk 0:03:06.6]} 12. Qd2 {[%clk 0:02:55.8]} 12... O-O {[%clk
0:03:07.2]} 13. g4 {[%clk 0:02:55.7]} 13... Rfc8 {[%clk 0:03:06.8]} 14. g5
{[%clk 0:02:52.5]} 14... Ne8 {[%clk 0:03:04.7]} 15. h4 {[%clk 0:02:49.7]} 15...
Qd8 {[%clk 0:03:01.3]} 16. h5 {[%clk 0:02:42]} 16... Ne5 {[%clk 0:03:01.5]} 17.
b3 {[%clk 0:02:42.7]} 17... d5 {[%clk 0:03:00.4]} 18. f4 {[%clk 0:02:37.8]}
18... Nd7 {[%clk 0:02:15.5]} 19. g6 {[%clk 0:02:32.4]} 19... dxc4 {[%clk
0:02:04.6]} 20. gxf7+ {[%clk 0:02:30.5]} 20... Kxf7 {[%clk 0:02:04.8]} 21. Bxc4
{[%clk 0:01:29.9]} 21... Rxc4 {[%clk 0:02:04.8]} 22. bxc4 {[%clk 0:01:30.8]}
22... Bxa3 {[%clk 0:02:05]} 23. Rd1 {[%clk 0:01:26.2]} 23... Nf8 {[%clk
0:01:31.1]} 24. h6 {[%clk 0:01:19.7]} 24... g6 {[%clk 0:01:27.7]} 25. Kf2 {[%clk
0:01:01.1]} 25... Nf6 {[%clk 0:01:18.1]} 26. Nf3 {[%clk 0:00:54.9]} 26... Qc7
{[%clk 0:01:06.2]} 27. Bd4 {[%clk 0:00:47.3]} 27... Rd8 {[%clk 0:00:59.3]} 28.
Qa2 {[%clk 0:00:46.4]} 28... Rxd4 {[%clk 0:00:45.1]} 29. Rxd4 {[%clk 0:00:36.5]}
29... Bc5 {[%clk 0:00:44.3]} 30. Qd2 {[%clk 0:00:26.1]} 30... Kg8 {[%clk
0:00:34.9]} 31. Ke2 {[%clk 0:00:25.6]} 31... Nh5 {[%clk 0:00:16.4]} 32. Rd1
{[%clk 0:00:20.3]} 32... Nxf4+ {[%clk 0:00:08.3]} 33. Kf1 {[%clk 0:00:21]} 33...
Nh5 {[%clk 0:00:03.3]} 34. Rd8 {[%clk 0:00:19.1]} 34... Qf7 {[%clk 0:00:01.5]}
35. Qg2 {[%clk 0:00:16.7]} 35... Qf6 {[%clk 0:00:01.6]} 36. R1d3 {[%clk
0:00:14]} 36... Nf4 {[%clk 0:00:01.4]} 37. e5 {[%clk 0:00:14.6]} 37... Qf7
{[%clk 0:00:01.5]} 38. Ng5 {[%clk 0:00:14.2]} 38... Bxg2+ {[%clk 0:00:01.1]} 39.
Ke1 {[%clk 0:00:14.9]} 39... Nxd3+ {[%clk 0:00:01.9]} 40. Kd2 {[%clk 0:00:14.9]}
40... Qf2+ {[%clk 0:00:02.4]} 41. Kxd3 {[%clk 0:00:15.6]} 41... Bf1+ {[%clk
0:00:03.2]} 42. Ke4 {[%clk 0:00:13.4]} 42... Qf5# {[%clk 0:00:03.5]} 0-1